fUSD/lending_fUSD_20250215
["ID","MTS","AMOUNT","RATE_DAILY","PERIOD"]
[353157378,1739614279439,-745.83365208,0.00013943,2]
[353157379,1739614279448,-92.28634792,0.00013943,2]
[353157381,1739614356557,513.0,0.00020656,120]
[353157395,1739614457292,2694.0,0.0002,120]
[353157397,1739614550983,5000.0,8.973e-05,2]
[353157404,1739614707503,3049.7082,8.836e-05,2]
[353157411,1739614890357,310.6,0.00010137,2]
[353157539,1739615108652,2189.4,0.0001,2]
[353157541,1739615111135,1043.63325631,0.00020644,120]
[353157546,1739615120529,319.16581291,0.00020644,120]
[353157547,1739615122250,940.95504898,0.00020644,120]
[353157549,1739615127536,624.34048604,0.0002,120]
[353157553,1739615132960,873.28960756,0.0002,120]
[353157554,1739615137409,11929.94892043,8e-05,2]
[353157557,1739615142382,283.86822512,0.00020644,120]
[353157560,1739615154089,2394.94617916,0.00020644,120]
[353157562,1739615156716,189.92690913,0.00017,120]
[353157571,1739615173641,438.50383631,0.0002,120]
[353157573,1739615174841,224.77615251,0.00020644,120]
[353157577,1739615181009,225.59546314,0.00020644,120]
[353157578,1739615187922,190.39123495,0.00020644,120]
[353157583,1739615199026,-465.0,9.829e-05,2]
[353157593,1739615221829,256.76274041,0.00020644,120]
[353157602,1739615235291,252.97154776,0.00020644,120]
[353157609,1739615256572,395.94043172,0.00020644,120]
[353157613,1739615261973,167.10207312,0.00020644,120]
[353157618,1739615267290,205.34098477,0.00020644,120]
[353157621,1739615268486,1026.70607342,0.0002,120]
[353157622,1739615270213,225.41293978,0.00020644,120]
[353157623,1739615271185,373.01323559,0.0002,120]
[353157625,1739615274413,397.92476394,0.00020644,120]
[353157636,1739615294847,166.0731847,0.0002,120]
[353157645,1739615311265,1345.01026855,0.00020644,120]
[353157646,1739615313926,1410.67206705,0.00020644,120]
[353157647,1739615315428,200.64793717,0.00020644,120]
[353157648,1739615316226,747.08476857,0.00020644,120]
[353157649,1739615316283,170.26359232,0.00020644,120]
[353157651,1739615316593,2959.68957432,0.00020644,120]
[353157652,1739615316622,185.74830894,0.0002,120]
[353157654,1739615316796,162.52854511,0.00020644,120]
[353157655,1739615317490,151.22249743,0.00020644,120]
[353157656,1739615317584,2215.83399858,0.00020644,120]
[353157657,1739615318343,227.45173495,0.00020644,120]
[353157658,1739615319085,826.84137235,0.00020644,120]
[353157660,1739615322123,174.0502873,0.00020644,120]
[353157661,1739615322479,165.04271794,0.00020644,120]
[353157662,1739615324191,378.01856862,0.00020644,120]
[353157666,1739615325618,433.3952345,0.0001,120]
[353157668,1739615326277,306.79153866,0.0002,120]
[353157669,1739615326700,998.52545119,0.00020644,120]
[353157670,1739615326834,159.47047839,0.00020644,120]
[353157706,1739615405499,-0.1,9.829e-05,2]
[353157707,1739615405533,-500.0,9.999e-05,2]
[353157708,1739615405560,-500.0,9.999e-05,2]
[353157709,1739615405585,-500.0,9.999e-05,2]
[353157710,1739615405610,-500.0,9.999e-05,2]
[353157711,1739615405637,-500.0,9.999e-05,2]
[353157712,1739615405662,-151.77621427,9.999e-05,2]
[353157713,1739615405688,-500.0,9.999e-05,2]
[353157714,1739615405716,-370.89179,9.999e-05,2]
[353157715,1739615405742,-407.37228345,9.999e-05,2]
[353157716,1739615405772,-36069.85971228,0.0001,2]
[353157733,1739615431908,-9719.86372488,0.0001,2]
[353157751,1739615437811,-32143.1625321,0.0001,2]
[353157752,1739615437825,-4897.95432358,0.0001,2]
[353157753,1739615437837,-78333.78135483,0.0001,2]
[353157755,1739615440136,-18212.21863031,0.0001,2]
[353157756,1739615440147,-503.24358,0.0001,2]
[353157758,1739615440158,-359.24789631,0.0001,2]
[353157759,1739615440176,-2866.59553672,0.0001,2]
[353157760,1739615440195,-487.992505,0.0001,2]
[353157772,1739615442685,-5826.95480421,0.0001,2]
[353157776,1739615442795,-3065.61961784,0.0001,2]
[353157777,1739615442806,-900.10574579,0.0001,2]
[353157778,1739615442819,-4236.43772707,0.0001,2]
[353157779,1739615442830,-762.87451738,0.0001,2]
[353157780,1739615442854,-5577.63183786,0.0001,2]
[353157781,1739615442867,-501.05350463,0.0001,2]
[353157782,1739615442878,-2680.05089236,0.0001,2]
[353157783,1739615442889,-1402.49998,0.0001,2]
[353157784,1739615442900,-1325.1,0.0001,2]
[353157785,1739615442918,-800.0,0.0001,2]
[353157786,1739615442967,-7563.91424845,0.0001,2]
[353157787,1739615442978,-317.92,0.0001,2]
[353157788,1739615443023,-944.39956308,0.0001,2]
[353157793,1739615445619,-1473.12,0.0001,2]
[353157794,1739615445681,-743.3523116,0.0001,2]
[353157795,1739615445842,-154106.47624897,0.0001,2]
[353157796,1739615445853,-137478.54226086,0.0001,2]
[353157797,1739615445862,-150.10578439,0.0001,2]
[353157798,1739615445871,-337.62066297,0.0001,2]
[353157799,1739615445880,-800.0,0.00010068,2]
[353157800,1739615445891,-800.0,0.00010068,2]
[353157801,1739615445901,-939.95738522,0.000104,2]
[353157802,1739615445911,-165.16,0.00010683,2]
[353157803,1739615445921,-500.0,0.00010958,2]
[353157804,1739615445930,-500.0,0.00010958,2]
[353157805,1739615445942,-500.0,0.00010958,2]
[353157806,1739615445952,-500.0,0.00010958,2]
[353157807,1739615445963,-583.6,0.00010958,2]
[353157808,1739615445972,-500.0,0.00010958,2]
[353157809,1739615445982,-500.0,0.00010958,2]
[353157810,1739615445992,-500.0,0.00010958,2]
[353157811,1739615446002,-500.0,0.00010958,2]
[353157812,1739615446012,-500.0,0.00010958,2]
[353157813,1739615446022,-500.0,0.00010958,2]
[353157814,1739615446032,-500.0,0.00010958,2]
[353157815,1739615446042,-632.11,0.00010958,2]
[353157816,1739615446052,-500.0,0.00010958,2]
[353157817,1739615446061,-500.0,0.00010958,2]
[353157819,1739615446070,-500.0,0.00010958,2]
[353157820,1739615446080,-500.0,0.00010958,2]
[353157821,1739615446090,-559.6,0.00010958,2]
[353157822,1739615446099,-500.0,0.00010958,2]
[353157823,1739615446108,-500.0,0.00010958,2]
[353157824,1739615446118,-500.0,0.00010958,2]
[353157825,1739615446131,-500.0,0.00010958,2]
[353157826,1739615446141,-799.4,0.00010958,2]
[353157827,1739615446151,-500.0,0.00010958,2]
[353157828,1739615446160,-500.0,0.00010958,2]
[353157829,1739615446169,-500.0,0.00010958,2]
[353157830,1739615446179,-500.0,0.00010958,2]
[353157831,1739615446188,-500.0,0.00010958,2]
[353157832,1739615446197,-500.0,0.00010958,2]
[353157833,1739615446207,-595.2,0.00010958,2]
[353157834,1739615446216,-500.0,0.00010958,2]
[353157835,1739615446225,-500.0,0.00010958,2]
[353157836,1739615446235,-500.0,0.00010958,2]
[353157837,1739615446245,-502.74116395,0.00010958,2]
[353157838,1739615446255,-500.0,0.00010958,2]
[353157839,1739615446264,-500.0,0.00010958,2]
[353157840,1739615446273,-500.0,0.00010958,2]
[353157841,1739615446283,-569.78,0.00010958,2]
[353157842,1739615446292,-500.0,0.00010958,2]
[353157843,1739615446301,-500.0,0.00010958,2]
[353157844,1739615446310,-500.0,0.00010958,2]
[353157845,1739615446320,-500.0,0.00010958,2]
[353157846,1739615446330,-500.0,0.00010958,2]
[353157847,1739615446340,-500.0,0.00010958,2]
[353157848,1739615446349,-500.0,0.00010958,2]
[353157849,1739615446359,-500.0,0.00010958,2]
[353157850,1739615446368,-500.0,0.00010958,2]
[353157851,1739615446378,-500.0,0.00010958,2]
[353157852,1739615446388,-500.0,0.00010958,2]
[353157853,1739615446398,-500.0,0.00010958,2]
[353157854,1739615446408,-500.0,0.00010958,2]
[353157855,1739615446416,-500.0,0.00010958,2]
[353157856,1739615446425,-500.0,0.00010958,2]
[353157857,1739615446436,-500.0,0.00010958,2]
[353157858,1739615446446,-500.0,0.00010958,2]
[353157859,1739615446455,-500.0,0.00010958,2]
[353157860,1739615446465,-500.0,0.00010958,2]
[353157861,1739615446475,-605.86,0.00010958,2]
[353157862,1739615446485,-500.0,0.00010958,2]
[353157863,1739615446494,-2956.0,0.00011018,2]
[353157864,1739615446503,-1271.191,0.00011018,2]
[353157865,1739615446513,-921.472,0.00011018,2]
[353157866,1739615446522,-855.289,0.00011018,2]
[353157867,1739615446531,-545.834,0.00011018,2]
[353157868,1739615446540,-4027.0,0.00011018,2]
[353157869,1739615446551,-1827.0,0.00011018,2]
[353157870,1739615446560,-492.1,0.00011018,2]
[353157871,1739615446570,-506.66,0.00011018,2]
[353157873,1739615446799,-499.7,0.00011018,2]
[353157874,1739615446810,-492.33,0.00011018,2]
[353157875,1739615446821,-493.89,0.00011018,2]
[353157876,1739615446831,-504.02,0.00011018,2]
[353157877,1739615446841,-501.12,0.00011018,2]
[353157878,1739615446851,-497.3,0.00011018,2]
[353157879,1739615446861,-506.43,0.00011018,2]
[353157880,1739615446871,-508.45,0.00011018,2]
[353157881,1739615446880,-508.8,0.00011018,2]
[353157883,1739615446890,-503.51,0.00011018,2]
[353157884,1739615446899,-495.74,0.00011018,2]
[353157885,1739615446908,-508.88,0.00011018,2]
[353157886,1739615446917,-498.97,0.00011018,2]
[353157887,1739615446926,-503.15,0.00011018,2]
[353157888,1739615446936,-502.72,0.00011018,2]
[353157889,1739615446946,-496.93,0.00011018,2]
[353157890,1739615446955,-509.07,0.00011018,2]
[353157891,1739615446965,-507.72,0.00011018,2]
[353157892,1739615446975,-497.06,0.00011018,2]
[353157893,1739615446984,-493.95,0.00011018,2]
[353157894,1739615446994,-492.41,0.00011018,2]
[353157895,1739615447004,-501.41,0.00011018,2]
[353157896,1739615447014,-499.14,0.00011018,2]
[353157897,1739615447023,-498.64,0.00011018,2]
[353157898,1739615447032,-497.56,0.00011018,2]
[353157899,1739615447041,-497.92,0.00011018,2]
[353157900,1739615447051,-500.37,0.00011018,2]
[353157901,1739615447060,-509.32,0.00011018,2]
[353157902,1739615447070,-490.18,0.00011018,2]
[353157903,1739615447080,-495.18,0.00011018,2]
[353157904,1739615447089,-507.95,0.00011018,2]
[353157905,1739615447099,-494.45,0.00011018,2]
[353157906,1739615447109,-508.76,0.00011018,2]
[353157907,1739615447119,-494.94,0.00011018,2]
[353157908,1739615447128,-506.46,0.00011018,2]
[353157909,1739615447139,-496.13,0.00011018,2]
[353157910,1739615447148,-495.63,0.00011018,2]
[353157911,1739615447158,-498.31,0.00011018,2]
[353157912,1739615447171,-10456.56247155,0.00011023,2]
[353157913,1739615447181,-500.0,0.00011041,2]
[353157914,1739615447190,-500.0,0.00011041,2]
[353157915,1739615447199,-500.0,0.00011041,2]
[353157916,1739615447209,-500.0,0.00011041,2]
[353157917,1739615447219,-583.6,0.00011041,2]
[353157918,1739615447228,-500.0,0.00011041,2]
[353157919,1739615447238,-500.0,0.00011041,2]
[353157920,1739615447247,-500.0,0.00011041,2]
[353157921,1739615447257,-500.0,0.00011041,2]
[353157922,1739615447267,-500.0,0.00011041,2]
[353157923,1739615447276,-500.0,0.00011041,2]
[353157925,1739615447286,-500.0,0.00011041,2]
[353157926,1739615447295,-632.11,0.00011041,2]
[353157927,1739615447306,-500.0,0.00011041,2]
[353157928,1739615447316,-500.0,0.00011041,2]
[353157929,1739615447325,-500.0,0.00011041,2]
[353157930,1739615447335,-500.0,0.00011041,2]
[353157931,1739615447345,-559.6,0.00011041,2]
[353157932,1739615447355,-500.0,0.00011041,2]
[353157933,1739615447365,-500.0,0.00011041,2]
[353157934,1739615447375,-500.0,0.00011041,2]
[353157935,1739615447385,-799.4,0.00011041,2]
[353157936,1739615447395,-500.0,0.00011041,2]
[353157937,1739615447404,-500.0,0.00011041,2]
[353157938,1739615447414,-500.0,0.00011041,2]
[353157939,1739615447424,-285.68,0.00011041,2]
[353157940,1739615447434,-500.0,0.00011041,2]
[353157941,1739615447444,-500.0,0.00011041,2]
[353157942,1739615447454,-500.0,0.00011041,2]
[353157943,1739615447464,-500.0,0.00011041,2]
[353157944,1739615447474,-500.0,0.00011041,2]
[353157945,1739615447485,-569.78,0.00011041,2]
[353157946,1739615447495,-500.0,0.00011041,2]
[353157947,1739615447506,-500.0,0.00011041,2]
[353157948,1739615447516,-180.26,0.00011041,2]
[353157949,1739615447528,-397.59,0.00011041,2]
[353157950,1739615447538,-500.0,0.00011041,2]
[353157951,1739615447547,-500.0,0.00011041,2]
[353157952,1739615447557,-500.0,0.00011041,2]
[353157953,1739615447567,-500.0,0.00011041,2]
[353157954,1739615447576,-500.0,0.00011041,2]
[353157955,1739615447586,-500.0,0.00011041,2]
[353157956,1739615447595,-163.1858287,0.00011099,2]
[353157957,1739615447604,-163.18582868,0.00011099,2]
[353157958,1739615447614,-243.72,0.00011121,2]
[353157959,1739615447623,-500.0,0.00011123,2]
[353157960,1739615447632,-500.0,0.00011123,2]
[353157961,1739615447642,-500.0,0.00011123,2]
[353157962,1739615447651,-500.0,0.00011123,2]
[353157963,1739615447660,-583.6,0.00011123,2]
[353157964,1739615447670,-500.0,0.00011123,2]
[353157965,1739615447679,-500.0,0.00011123,2]
[353157966,1739615447689,-500.0,0.00011123,2]
[353157967,1739615447698,-500.0,0.00011123,2]
[353157968,1739615447708,-500.0,0.00011123,2]
[353157969,1739615447717,-500.0,0.00011123,2]
[353157970,1739615447727,-632.11,0.00011123,2]
[353157971,1739615447738,-500.0,0.00011123,2]
[353157972,1739615447747,-500.0,0.00011123,2]
[353157973,1739615447757,-500.0,0.00011123,2]
[353157974,1739615447767,-500.0,0.00011123,2]
[353157975,1739615447779,-559.6,0.00011123,2]
[353157976,1739615447788,-500.0,0.00011123,2]
[353157977,1739615447798,-500.0,0.00011123,2]
[353157978,1739615447807,-237.93,0.00011123,2]
[353157979,1739615447817,-799.4,0.00011123,2]
[353157980,1739615447826,-500.0,0.00011123,2]
[353157981,1739615447836,-374.52,0.00011123,2]
[353157982,1739615447846,-500.0,0.00011123,2]
[353157983,1739615447856,-500.0,0.00011123,2]
[353157984,1739615447865,-500.0,0.00011123,2]
[353157985,1739615447874,-500.0,0.00011123,2]
[353157986,1739615447883,-500.0,0.00011123,2]
[353157987,1739615447892,-500.0,0.00011123,2]
[353157988,1739615447901,-569.78,0.00011123,2]
[353157989,1739615447910,-500.0,0.00011123,2]
[353157990,1739615447919,-500.0,0.00011123,2]
[353157991,1739615447928,-500.0,0.00011123,2]
[353157992,1739615447939,-500.0,0.00011123,2]
[353157993,1739615447947,-500.0,0.00011123,2]
[353157994,1739615447957,-500.0,0.00011123,2]
[353157995,1739615447966,-600.7,0.00011123,2]
[353157996,1739615447975,-500.0,0.00011123,2]
[353157997,1739615447985,-500.0,0.00011164,2]
[353157998,1739615447994,-150.0,0.00011164,2]
[353157999,1739615448003,-509.02,0.00011164,2]
[353158001,1739615448012,-508.38,0.00011164,2]
[353158002,1739615448022,-495.13,0.00011164,2]
[353158003,1739615448032,-492.27,0.00011164,2]
[353158004,1739615448041,-507.14,0.00011164,2]
[353158005,1739615448052,-497.91,0.00011164,2]
[353158006,1739615448061,-498.41,0.00011164,2]
[353158007,1739615448071,-499.31,0.00011164,2]
[353158008,1739615448081,-501.55,0.00011164,2]
[353158009,1739615448091,-501.33,0.00011164,2]
[353158010,1739615448101,-503.71,0.00011164,2]
[353158011,1739615448111,-494.4,0.00011164,2]
[353158012,1739615448121,-502.07,0.00011164,2]
[353158013,1739615448131,-496.25,0.00011164,2]
[353158014,1739615448141,-507.31,0.00011164,2]
[353158015,1739615448151,-494.92,0.00011164,2]
[353158016,1739615448161,-304.53,0.00011197,3]
[353158017,1739615448171,-500.0,0.00011205,2]
[353158018,1739615448182,-500.0,0.00011205,2]
[353158019,1739615448193,-500.0,0.00011205,2]
[353158020,1739615448203,-500.0,0.00011205,2]
[353158021,1739615448213,-583.6,0.00011205,2]
[353158022,1739615448224,-500.0,0.00011205,2]
[353158023,1739615448236,-500.0,0.00011205,2]
[353158024,1739615448248,-500.0,0.00011205,2]
[353158025,1739615448257,-227.63,0.00011205,2]
[353158026,1739615448267,-500.0,0.00011205,2]
[353158027,1739615448276,-500.0,0.00011205,2]
[353158028,1739615448286,-632.11,0.00011205,2]
[353158029,1739615448296,-500.0,0.00011205,2]
[353158030,1739615448306,-500.0,0.00011205,2]
[353158031,1739615448315,-500.0,0.00011205,2]
[353158032,1739615448325,-500.0,0.00011205,2]
[353158033,1739615448335,-559.6,0.00011205,2]
[353158034,1739615448344,-500.0,0.00011205,2]
[353158035,1739615448354,-343.84,0.00011205,2]
[353158036,1739615448363,-799.4,0.00011205,2]
[353158037,1739615448376,-500.0,0.00011205,2]
[353158038,1739615448386,-500.0,0.00011205,2]
[353158039,1739615448397,-500.0,0.00011205,2]
[353158040,1739615448406,-500.0,0.00011205,2]
[353158041,1739615448416,-500.0,0.00011205,2]
[353158042,1739615448426,-647.23,0.00011205,2]
[353158043,1739615448435,-500.0,0.00011205,2]
[353158044,1739615448446,-569.78,0.00011205,2]
[353158045,1739615448455,-500.0,0.00011205,2]
[353158046,1739615448465,-500.0,0.00011205,2]
[353158047,1739615448475,-500.0,0.00011205,2]
[353158048,1739615448485,-500.0,0.00011205,2]
[353158049,1739615448495,-500.0,0.00011205,2]
[353158050,1739615448505,-379.29,0.00011205,2]
[353158051,1739615448515,-500.0,0.00011205,2]
[353158052,1739615448524,-347.5,0.00011287,2]
[353158053,1739615448534,-500.0,0.00011287,2]
[353158054,1739615448545,-500.0,0.00011287,2]
[353158055,1739615448555,-583.48,0.00011287,2]
[353158056,1739615448565,-583.6,0.00011287,2]
[353158057,1739615448575,-500.0,0.00011287,2]
[353158058,1739615448585,-500.0,0.00011287,2]
[353158059,1739615448596,-500.0,0.00011287,2]
[353158060,1739615448607,-500.0,0.00011287,2]
[353158061,1739615448617,-500.0,0.00011287,2]
[353158062,1739615448627,-632.11,0.00011287,2]
[353158063,1739615448638,-500.0,0.00011287,2]
[353158064,1739615448649,-500.0,0.00011287,2]
[353158065,1739615448659,-500.0,0.00011287,2]
[353158066,1739615448669,-394.84,0.00011287,2]
[353158067,1739615448679,-559.6,0.00011287,2]
[353158068,1739615448689,-500.0,0.00011287,2]
[353158069,1739615448700,-799.4,0.00011287,2]
[353158070,1739615448710,-500.0,0.00011287,2]
[353158071,1739615448720,-500.0,0.00011287,2]
[353158072,1739615448730,-454.42,0.00011287,2]
[353158073,1739615448740,-500.0,0.00011287,2]
[353158074,1739615448750,-500.0,0.00011287,2]
[353158075,1739615448761,-500.0,0.00011287,2]
[353158077,1739615448772,-569.78,0.00011287,2]
[353158078,1739615448783,-500.0,0.00011287,2]
[353158079,1739615448793,-500.0,0.00011287,2]
[353158080,1739615448803,-500.0,0.00011287,2]
[353158081,1739615448815,-500.0,0.00011287,2]
[353158082,1739615448825,-500.0,0.00011287,2]
[353158083,1739615448835,-500.0,0.00011287,2]
[353158084,1739615448845,-500.0,0.00011369,2]
[353158085,1739615448856,-500.0,0.00011369,2]
[353158086,1739615448865,-583.6,0.00011369,2]
[353158087,1739615448875,-500.0,0.00011369,2]
[353158088,1739615448885,-500.0,0.00011369,2]
[353158089,1739615448896,-500.0,0.00011369,2]
[353158090,1739615448907,-500.0,0.00011369,2]
[353158091,1739615448917,-500.0,0.00011369,2]
[353158092,1739615448927,-632.11,0.00011369,2]
[353158093,1739615448938,-500.0,0.00011369,2]
[353158094,1739615448948,-500.0,0.00011369,2]
[353158095,1739615448958,-500.0,0.00011369,2]
[353158096,1739615448969,-559.6,0.00011369,2]
[353158097,1739615448980,-323.67,0.00011369,2]
[353158098,1739615448990,-799.4,0.00011369,2]
[353158099,1739615448999,-169.31,0.00011369,2]
[353158100,1739615449011,-500.0,0.00011369,2]
[353158101,1739615449021,-244.11,0.00011369,2]
[353158102,1739615449031,-500.0,0.00011369,2]
[353158103,1739615449041,-500.0,0.00011369,2]
[353158104,1739615449051,-569.78,0.00011369,2]
[353158105,1739615449060,-183.42,0.00011369,2]
[353158106,1739615449070,-500.0,0.00011369,2]
[353158107,1739615449080,-500.0,0.00011369,2]
[353158108,1739615449090,-500.0,0.00011369,2]
[353158109,1739615449100,-500.0,0.00011369,2]
[353158110,1739615449114,-585.6,0.00011369,2]
[353158111,1739615449124,-163.18582868,0.0001142,2]
[353158112,1739615449134,-800.0,0.00011438,2]
[353158113,1739615449143,-800.0,0.00011438,2]
[353158114,1739615449153,-500.0,0.00011452,2]
[353158115,1739615449163,-500.0,0.00011452,2]
[353158116,1739615449172,-583.6,0.00011452,2]
[353158117,1739615449182,-500.0,0.00011452,2]
[353158118,1739615449194,-500.0,0.00011452,2]
[353158119,1739615449204,-500.0,0.00011452,2]
[353158120,1739615449213,-500.0,0.00011452,2]
[353158121,1739615449223,-500.0,0.00011452,2]
[353158122,1739615449233,-632.11,0.00011452,2]
[353158123,1739615449244,-500.0,0.00011452,2]
[353158124,1739615449255,-500.0,0.00011452,2]
[353158125,1739615449265,-500.0,0.00011452,2]
[353158126,1739615449275,-559.6,0.00011452,2]
[353158127,1739615449285,-799.4,0.00011452,2]
[353158128,1739615449295,-500.0,0.00011452,2]
[353158129,1739615449306,-500.0,0.00011452,2]
[353158130,1739615449317,-500.0,0.00011452,2]
[353158131,1739615449327,-569.78,0.00011452,2]
[353158132,1739615449337,-500.0,0.00011452,2]
[353158133,1739615449347,-500.0,0.00011452,2]
[353158134,1739615449358,-500.0,0.00011452,2]
[353158135,1739615449368,-255.26,0.00011452,2]
[353158136,1739615449379,-500.0,0.00011534,2]
[353158137,1739615449390,-500.0,0.00011534,2]
[353158138,1739615449400,-583.6,0.00011534,2]
[353158139,1739615449411,-500.0,0.00011534,2]
[353158140,1739615449421,-500.0,0.00011534,2]
[353158141,1739615449431,-500.0,0.00011534,2]
[353158142,1739615449442,-500.0,0.00011534,2]
[353158143,1739615449452,-335.32482985,0.00011534,2]
[353158144,1739615449718,-164.67517015,0.00011534,2]
[353158145,1739615449728,-632.11,0.00011534,2]
[353158146,1739615449737,-500.0,0.00011534,2]
[353158147,1739615449747,-251.60763087,0.00011534,2]
[353158148,1739615449756,-358.61462398,0.00011534,2]
[353158149,1739615449768,-141.38537602,0.00011534,2]
[353158150,1739615449781,-559.6,0.00011534,2]
[353158151,1739615449790,-799.4,0.00011534,2]
[353158152,1739615449800,-500.0,0.00011534,2]
[353158153,1739615449810,-159.52,0.00011534,2]
[353158154,1739615449819,-500.0,0.00011534,2]
[353158155,1739615449828,-569.78,0.00011534,2]
[353158156,1739615449837,-500.0,0.00011534,2]
[353158157,1739615449846,-500.0,0.00011534,2]
[353158158,1739615449855,-500.0,0.00011534,2]
[353158159,1739615449864,-225.71,0.00011616,2]
[353158160,1739615449874,-500.0,0.00011616,2]
[353158161,1739615449883,-583.6,0.00011616,2]
[353158162,1739615449892,-500.0,0.00011616,2]
[353158163,1739615449901,-500.0,0.00011616,2]
[353158164,1739615449910,-500.0,0.00011616,2]
[353158165,1739615449919,-500.0,0.00011616,2]
[353158166,1739615449926,-500.0,0.00011616,2]
[353158167,1739615449936,-632.11,0.00011616,2]
[353158168,1739615449946,-500.0,0.00011616,2]
[353158169,1739615449957,-500.0,0.00011616,2]
[353158170,1739615449968,-559.6,0.00011616,2]
[353158171,1739615449978,-799.4,0.00011616,2]
[353158172,1739615449989,-102.83968679,0.00011616,2]
[353158576,1739616229023,441.84,8.39e-05,2]
[353158577,1739616230379,4798.2036,8.256e-05,2]
[353158730,1739616631881,-900.0,0.00010068,2]
[353158731,1739616631891,-1000.0,0.00010068,2]
[353158732,1739616631900,-393.23,0.00010137,2]
[353158733,1739616631911,-1000.0,0.00010173,2]
[353158734,1739616631920,-178.33,0.00010185,2]
[353158735,1739616631929,-2401.69,0.00010187,2]
[353158736,1739616631940,-400.27,0.00010383,2]
[353158737,1739616631949,-441.84,0.00010654,2]
[353158738,1739616631959,-337.62066296,0.0001094,2]
[353158739,1739616631968,-150.0,0.00010957,2]
[353158740,1739616631978,-503.32659104,0.00010958,2]
[353158741,1739616631987,-500.0,0.00010958,2]
[353158742,1739616631996,-374.44527543,0.00010958,2]
[353158743,1739616632005,-500.0,0.00010958,2]
[353158744,1739616632015,-500.0,0.00010958,2]
[353158745,1739616632026,-500.0,0.00010958,2]
[353158746,1739616632036,-500.0,0.00010958,2]
[353158747,1739616632046,-500.0,0.00010958,2]
[353158748,1739616632056,-500.0,0.00010958,2]
[353158749,1739616632065,-500.0,0.00010958,2]
[353158750,1739616632074,-500.0,0.00010958,2]
[353158751,1739616632085,-121.67664116,0.00010958,2]
[353158752,1739616632097,-382.23335884,0.00010958,2]
[353158753,1739616632106,-500.0,0.00010958,2]
[353158754,1739616632115,-500.0,0.00010958,2]
[353158755,1739616632124,-500.0,0.00010958,2]
[353158756,1739616632133,-612.57466594,0.00010958,2]
[353158757,1739616632143,-500.0,0.00010958,2]
[353158758,1739616632157,-500.0,0.00010958,2]
[353158759,1739616632168,-500.0,0.00010958,2]
[353158760,1739616632178,-163.61272562,0.00010958,2]
[353158761,1739616632188,-500.0,0.00010958,2]
[353158762,1739616632199,-500.0,0.00010958,2]
[353158763,1739616632209,-500.0,0.00010958,2]
[353158764,1739616632218,-500.0,0.00010958,2]
[353158765,1739616632227,-500.0,0.00010958,2]
[353158766,1739616632237,-500.0,0.00010958,2]
[353158767,1739616632248,-500.0,0.00010958,2]
[353158768,1739616632257,-500.0,0.00010958,2]